Cogmind - Beta 13 @@@ ROGUE MODE // 2024.04.23 @ 21:32:23 Player: Alphabethead Result: Destroyed by X-62 Marksman with Gauss Rifle Performance ------------- Evolutions (3) 1500 Regions Visited (9) 1800 Robots Destroyed (24) 120 Value Destroyed (715) 715 Prototype IDs (5) 100 Alien Tech Used (0) 0 Bonus (833) 833 TOTAL SCORE: 5068 Bonus ------- Follower Combat Kills 33 Entered DSFs 500 Aligned with FarCom 300 Cogmind --------- Core Integrity 0/700 Matter 215/300 Energy 100/100 System Corruption 7% Temperature Cool (18) Movement Core (200) Ox3 Location -7/DSF Parts ------- > --- POWER (1) -------- (None) > --- PROPULSION (3) --- (None) > --- UTILITY (6) ------ Medium Storage Unit > --- WEAPON (3) ------- (None) > --- INVENTORY (10) --- Improved Carbon-fiber Leg Peak State ------------ > --- POWER ------------ Enhanced Nuclear Core > --- PROPULSION ------- Improved Carbon-fiber Leg Improved Carbon-fiber Leg Improved Titanium Leg > --- UTILITY ---------- Improved Heat Sink Medium Storage Unit Advanced Targeting Computer Hacking Suite > --- WEAPON ----------- Lightning Gun Guided Plasma Cannon Powered Hammer > --- INVENTORY -------- Improved Carbon-fiber Leg Ion Cannon [Rating: 43] Favorites ----------- Power Ion Engine Engine Ion Engine Power Core Enhanced Nuclear Core Propulsion Aluminum Leg Leg Aluminum Leg Flight Unit Flight Unit Utility Medium Storage Unit Device Splice Drone Bay Storage Medium Storage Unit Processor Advanced Targeting Computer Hackware Hacking Suite Protection Light Armor Plating Weapon Assault Rifle Energy Gun Medium Laser Energy Cannon Ion Cannon Ballistic Gun Assault Rifle Ballistic Cannon Heavy Assault Cannon Impact Weapon Powered Hammer Build | -11 -10 -10 -9 -9 -9 -8 -8 -7 -7 ------- Run | Yrd Mat Min Mat Min Exi Min Mat Fac DSF Slots Evolved 6 | . . . 2 . . . 2 2 . Power . | . . . . . . . . . . Propulsion 1 | . . . 1 . . . . . . Utility 4 | . . . 1 . . . 2 1 . Weapon 1 | . . . . . . . . 1 . Parts Attached 60 | 6 4 11 1 2 4 1 15 7 9 Power 8 | 1 1 . . . . . 2 3 1 Engine 6 | 1 1 . . . . . 2 2 . Core 2 | . . . . . . . . 1 1 Reactor . | . . . . . . . . . . Propulsion 16 | 2 . 6 . 1 . 1 2 1 3 Treads . | . . . . . . . . . . Leg 14 | 2 . 4 . 1 . 1 2 1 3 Wheel . | . . . . . . . . . . Hover . | . . . . . . . . . . Flight 2 | . . 2 . . . . . . . Utility 17 | 1 2 4 1 1 2 . 6 . . Device 5 | . . 2 . . . . 3 . . Storage 2 | 1 . . . 1 . . . . . Processor 2 | . . . . . 1 . 1 . . Hackware 1 | . . . . . 1 . . . . Protection 7 | . 2 2 1 . . . 2 . . Artifact . | . . . . . . . . . . Weapon 19 | 2 1 1 . . 2 . 5 3 5 Energy Gun 3 | 1 . . . . . . 1 . 1 Energy Cannon 5 | . . . . . 1 . 1 . 3 Ballistic Gun 7 | 1 1 1 . . 1 . 2 1 . Ballistic Cannon 1 | . . . . . . . 1 . . Launcher . | . . . . . . . . . . Special Weapon . | . . . . . . . . . . Impact Weapon 3 | . . . . . . . . 2 1 Slashing Weapon . | . . . . . . . . . . Piercing Weapon . | . . . . . . . . . . Special Melee Weapon . | . . . . . . . . . . Unidentified Prototypes 5 | . . 1 . . 2 . . 2 . Parts Lost 25 | . 1 . . . . . 10 . 14 Power 3 | . 1 . . . . . 1 . 1 Propulsion 8 | . . . . . . . 4 . 4 Utility 7 | . . . . . . . 3 . 4 Weapon 7 | . . . . . . . 2 . 5 Highest Loss Streak 14 | . 1 . . . . . 9 . 14 To Critical Strikes . | . . . . . . . . . . Average Slot Usage (%) 90 | . 98 100 88 98 98 100 86 66 70 Engine 10 | . 13 14 11 11 11 11 8 6 1 Leg 24 | . 28 27 22 31 33 33 19 12 19 Device 11 | . . 12 11 11 11 11 22 15 10 Storage 11 | . 14 14 11 11 11 11 9 7 7 Processor 1 | . . . . . . . 2 7 7 Hackware 4 | . . . . . 4 11 9 7 6 Protection 3 | . 13 1 11 11 5 . . . . Energy Gun 2 | . 7 . . . . . 4 . . Ballistic Gun 16 | . 20 28 22 22 22 22 5 . . Ballistic Cannon 1 | . . . . . . . 3 7 4 Naked Turns . | . . . . . . . . . . Heaviest Build 41 | 13 16 22 25 30 30 27 33 35 41 Greatest Support 56 | 20 20 25 25 35 35 37 37 30 56 Greatest Overweight (x) 4 | 1 . 1 . . . . 2 2 4 Average Overweight (x) . | . . . . . . . . . . Largest Inventory Capacity 10 | 8 8 8 8 10 10 10 10 10 10 Average Capacity 9 | 7 8 8 8 9 10 10 10 10 10 Most Carried 10 | 6 8 8 8 8 10 10 9 8 7 Average Carried 6 | 3 5 7 7 7 8 9 6 5 4 Final Capacity 10 | 8 8 8 8 10 10 10 10 10 10 Final Carried 9 | 4 6 8 8 8 9 9 5 5 1 Class Distribution -------------------- 75% | Mutant 23% | Scavenger-Mutant Dominant Class ---------------- Mutant | -10/Materials Mutant | -10/Mines Mutant | -9/Materials Mutant | -9/Mines Mutant | -9/Exiles Mutant | -8/Mines Scavenger-Mutant | -8/Materials Scavenger-Mutant | -7/Factory Mutant | -7/DSF Resources | -11 -10 -10 -9 -9 -9 -8 -8 -7 -7 ----------- Run | Yrd Mat Min Mat Min Exi Min Mat Fac DSF Matter Collected 846 | 197 141 158 . 30 . 50 267 . 3 Remotely . | . . . . . . . . . . Salvage Created 847 | . 403 47 . . . . 397 . . Parts 50 | . 17 4 . . . . 29 . . Haulers Intercepted . | . . . . . . . . . . Recyclers Shooed 2 | . 1 . . . . . 1 . . Parts Field Recycled . | . . . . . . . . . . Retrieved Matter . | . . . . . . . . . . Parts Self-Destructed . | . . . . . . . . . . Prevented . | . . . . . . . . . . Kills | -11 -10 -10 -9 -9 -9 -8 -8 -7 -7 ------- Run | Yrd Mat Min Mat Min Exi Min Mat Fac DSF Combat Hostiles Destroyed 21 | . 10 3 . . . . 8 . . Guns 21 | . 10 3 . . . . 8 . . Classes Destroyed 6 | . 1 1 . . . . 4 . . Recycler 1 | . . . . . . . 1 . . Watcher 2 | . . . . . . . 2 . . Swarmer 7 | . . 3 . . . . 4 . . Grunt 12 | . 10 . . . . . 2 . . Sentry 1 | . . . . . . . 1 . . Heavy 1 | . . . . . . . 1 . . Best Kill Streak 5 | . 2 3 . . . . 5 . . Combat Bots Only 4 | . 2 3 . . . . 4 . . Max Kills in Single Turn 1 | . 1 1 . . . . 1 . . Gunslinging . | . . . . . . . . . . Exploded . | . . . . . . . . . . Melee . | . . . . . . . . . . Uniques/NPCs Destroyed . | . . . . . . . . . . Combat | -11 -10 -10 -9 -9 -9 -8 -8 -7 -7 -------- Run | Yrd Mat Min Mat Min Exi Min Mat Fac DSF Hostile Shots Fired 397 | . 53 13 2 6 . 14 76 . 233 Missed 128 | . 13 2 . 2 . 3 25 . 83 Damage Taken 4078 | . 487 91 47 54 . 91 1026 103 2179 Core 1018 | . 56 . 14 . . 7 230 . 711 Absorbed by Shields . | . . . . . . . . . . Core Remaining (%) 82 | 100 . 77 . . . 94 58 . . Volleys Fired 108 | . 49 8 . . . . 39 . 12 Largest 2 | . 2 2 . . . . 2 . 1 Hottest 120 | . 70 40 . . . . 98 . 120 Shots Fired 192 | . 94 16 . . . . 70 . 12 Gun 180 | . 94 16 . . . . 65 . 5 Cannon 12 | . . . . . . . 5 . 7 Launcher . | . . . . . . . . . . Special . | . . . . . . . . . . Kinetic 107 | . 52 16 . . . . 39 . . Thermal 80 | . 42 . . . . . 31 . 7 Explosive . | . . . . . . . . . . Electromagnetic 5 | . . . . . . . . . 5 Robot Hit Streak 21 | . 10 5 . . . . 18 . 21 Robot Miss Streak 3 | . 3 3 . . . . 2 . 2 Penetration Max . | . . . . . . . . . . Secondary Targets 2 | . . . . . . . 2 . . Max Gunslinging Chain 1 | . . . . . . . 1 . . Shots Hit Robots 136 | . 66 8 . . . . 52 . 10 Core Hits 50 | . 26 3 . . . . 21 . . Critical Kills . | . . . . . . . . . . Critical Parts Destroyed . | . . . . . . . . . . Critical Strikes 8 | . 7 . . . . . 1 . . Burn 8 | . 7 . . . . . 1 . . Melee Attacks 5 | . . . . . . . . . 5 Impact 5 | . . . . . . . . . 5 Slashing . | . . . . . . . . . . Piercing . | . . . . . . . . . . Sneak Attacks . | . . . . . . . . . . Combat Hostiles . | . . . . . . . . . . Follow-up Attacks . | . . . . . . . . . . Damage Inflicted 2063 | . 723 106 . . . . 930 . 304 Guns 1637 | . 704 96 . . . . 769 . 68 Cannons 361 | . . . . . . . 125 . 236 Explosions . | . . . . . . . . . . Melee . | . . . . . . . . . . Ramming 65 | . 19 10 . . . . 36 . . Kinetic 769 | . 278 96 . . . . 395 . . Thermal 1161 | . 426 . . . . . 499 . 236 Explosive . | . . . . . . . . . . Electromagnetic 68 | . . . . . . . . . 68 Impact . | . . . . . . . . . . Slashing . | . . . . . . . . . . Piercing . | . . . . . . . . . . Highest Corruption 7 | . . . . . . . . . 7 Average Corruption 7 | . . . . . . . . . 7 Corruption Purged . | . . . . . . . . . . Corruption Blocked . | . . . . . . . . . . Effects 1 | . . . . . . . . . 1 Alerts 1 | . . . . . . . . . 1 Overload Shots . | . . . . . . . . . . Overflow Damage . | . . . . . . . . . . Projectiles . | . . . . . . . . . . Explosions . | . . . . . . . . . . Melee . | . . . . . . . . . . Knockbacks . | . . . . . . . . . . Impact . | . . . . . . . . . . Kinetic . | . . . . . . . . . . Secondary . | . . . . . . . . . . Self-Inflicted Damage . | . . . . . . . . . . Shots . | . . . . . . . . . . Rammed . | . . . . . . . . . . Targets Rammed 14 | . 5 2 . . . 1 5 1 . Kicked 14 | . 5 2 . . . 1 5 1 . Crushed . | . . . . . . . . . . Highest Temperature 424 | . 424 . . . . . . . 132 Average Temperature 136 | . 145 . . . . . . . 42 Received Heat Transfer 738 | . 276 . 18 . . . 90 . 354 Effects 2 | . 2 . . . . . . . . Shutdowns 2 | . 2 . . . . . . . . Siege Activations . | . . . . . . . . . . Robots Corrupted . | . . . . . . . . . . Combat Hostiles . | . . . . . . . . . . Parts Fried . | . . . . . . . . . . Impact Corruptions . | . . . . . . . . . . Robots Melted . | . . . . . . . . . . Combat Hostiles . | . . . . . . . . . . Parts Melted 2 | . 2 . . . . . . . . Heat Transferred 3366 | . 1776 . . . . . 1073 . 517 Parts Sabotaged . | . . . . . . . . . . Parts Stolen . | . . . . . . . . . . Parts Stripped . | . . . . . . . . . . Power Chain Reactions . | . . . . . . . . . . Alert | -11 -10 -10 -9 -9 -9 -8 -8 -7 -7 ------- Run | Yrd Mat Min Mat Min Exi Min Mat Fac DSF Peak Influence 311 | . 311 75 57 37 . . 256 4 31 Initial 75 | . . 75 27 22 . . . . . Average 44 | . 126 34 37 36 . . 61 . 7 Maximum Alert Level 1 | . 1 . . . . . 1 . . Low Security (%) 95 | 100 87 100 100 100 . 100 88 100 100 Level 1 4 | . 12 . . . . . 11 . . Level 2 . | . . . . . . . . . . Level 3 . | . . . . . . . . . . Level 4 . | . . . . . . . . . . Level 5 . | . . . . . . . . . . High Security . | . . . . . . . . . . Max Security . | . . . . . . . . . . Squads Dispatched 5 | . 2 1 . . . . 1 . 1 Investigation 2 | . 1 1 . . . . . . . Extermination . | . . . . . . . . . . Reinforcement 3 | . 1 . . . . . 1 . 1 Assault . | . . . . . . . . . . Garrison . | . . . . . . . . . . Intercept . | . . . . . . . . . . Searches Triggered . | . . . . . . . . . . Construction Impeded . | . . . . . . . . . . Haulers Reinforced . | . . . . . . . . . . Active Scanning Responses . | . . . . . . . . . . Cargo Convoy Interrupts . | . . . . . . . . . . Stealth | -11 -10 -10 -9 -9 -9 -8 -8 -7 -7 --------- Run | Yrd Mat Min Mat Min Exi Min Mat Fac DSF Distress Signals 5 | . 1 . 1 . . . 3 . . Communications Jammed . | . . . . . . . . . . Distress Signals . | . . . . . . . . . . Times Spotted 64 | . 20 3 2 9 . 4 21 . 5 Peak Tracking Total 6 | . 5 3 2 4 . 4 6 . 5 Tactical Retreats 6 | . 3 . . . . . 1 . 2 Traps | -11 -10 -10 -9 -9 -9 -8 -8 -7 -7 ------- Run | Yrd Mat Min Mat Min Exi Min Mat Fac DSF Traps Triggered 3 | . 1 . . . . . . 1 1 Indirectly . | . . . . . . . . . . Trap Hack Attempts . | . . . . . . . . . . Triggered . | . . . . . . . . . . Disarmed . | . . . . . . . . . . Reprogrammed . | . . . . . . . . . . Reused . | . . . . . . . . . . Traps Extracted . | . . . . . . . . . . Installed . | . . . . . . . . . . Triggered . | . . . . . . . . . . Machines | -11 -10 -10 -9 -9 -9 -8 -8 -7 -7 ---------- Run | Yrd Mat Min Mat Min Exi Min Mat Fac DSF Machines Disabled 1 | . . . . . . . 1 . . Max in Single Turn 1 | . . . . . . . 1 . . Garrison Access 1 | . . . . . . . . 1 . Machines Repaired . | . . . . . . . . . . Machines Dismantled . | . . . . . . . . . . Machines Sabotaged . | . . . . . . . . . . Overloaded Fab Kills . | . . . . . . . . . . Hacking | -11 -10 -10 -9 -9 -9 -8 -8 -7 -7 --------- Run | Yrd Mat Min Mat Min Exi Min Mat Fac DSF Machines Accessed 15 | . 6 2 2 . . . 3 2 . Terminals 11 | . 6 . 2 . . . 2 1 . Fabricators . | . . . . . . . . . . Repair Stations . | . . . . . . . . . . Recycling Units . | . . . . . . . . . . Scanalyzers 1 | . . . . . . . 1 . . Garrison Access 1 | . . . . . . . . 1 . Total Hacks 35 | . 16 2 6 . . . 8 3 . Successful 18 | . 9 2 1 . . . 4 2 . Failed 17 | . 7 . 5 . . . 4 1 . Catastrophic 3 | . 1 . 1 . . . . 1 . Database Lockouts . | . . . . . . . . . . Manual 1 | . . . . . 1 . . . . Terminals 29 | . 16 . 6 . . . 6 1 . Fabricators . | . . . . . . . . . . Repair Stations . | . . . . . . . . . . Recycling Units . | . . . . . . . . . . Scanalyzers 2 | . . . . . . . 2 . . Garrison Access 2 | . . . . . . . . 2 . Terminal Hacks 15 | . 9 2 1 . . . 2 1 . Robot Analysis 1 | . 1 . . . . . . . . Open Door 2 | . . 2 . . . . . . . Open DSF 1 | . . . . . . . . 1 . Level Access Points 1 | . 1 . . . . . . . . Branch Access Points 2 | . 1 . . . . . 1 . . Terminal Index 1 | . 1 . . . . . . . . Alert Level 2 | . 1 . 1 . . . . . . Locate Traps 1 | . . . . . . . 1 . . Dispatch Records 2 | . 2 . . . . . . . . Reinforcement Status 1 | . 1 . . . . . . . . Zone Layout 1 | . 1 . . . . . . . . Fabricator Hacks . | . . . . . . . . . . Repair Station Hacks . | . . . . . . . . . . Recycling Unit Hacks . | . . . . . . . . . . Scanalyzer 2 | . . . . . . . 2 . . Insert Component 2 | . . . . . . . 2 . . Garrison Access Hacks 1 | . . . . . . . . 1 . Seal Access 1 | . . . . . . . . 1 . Unauthorized Hacks . | . . . . . . . . . . Terminals . | . . . . . . . . . . Fabricators . | . . . . . . . . . . Repair Stations . | . . . . . . . . . . Recycling Units . | . . . . . . . . . . Scanalyzers . | . . . . . . . . . . Garrison Access . | . . . . . . . . . . Data Cores Recovered . | . . . . . . . . . . Used . | . . . . . . . . . . Hacking Detections 12 | . 5 . 2 . . . 3 2 . Full Trace Events . | . . . . . . . . . . Feedback Events . | . . . . . . . . . . Feedback Blocked . | . . . . . . . . . . Robot Schematics Acquired . | . . . . . . . . . . Robots Built . | . . . . . . . . . . Authchips . | . . . . . . . . . . Time . | . . . . . . . . . . Total Robot Build Rating . | . . . . . . . . . . Part Schematics Acquired . | . . . . . . . . . . Parts Built . | . . . . . . . . . . Authchips . | . . . . . . . . . . Time . | . . . . . . . . . . Total Part Build Rating . | . . . . . . . . . . Parts Repaired . | . . . . . . . . . . Time . | . . . . . . . . . . Parts Recycled . | . . . . . . . . . . Recycled Matter . | . . . . . . . . . . Retrieved Matter . | . . . . . . . . . . Retrieved Components . | . . . . . . . . . . Parts Scanalyzed . | . . . . . . . . . . Part Schematics Acquired . | . . . . . . . . . . Parts Damaged . | . . . . . . . . . . Bothacking | -11 -10 -10 -9 -9 -9 -8 -8 -7 -7 ------------ Run | Yrd Mat Min Mat Min Exi Min Mat Fac DSF Used RIF Installer . | . . . . . . . . . . Robots Hacked . | . . . . . . . . . . Non-combat . | . . . . . . . . . . Combat . | . . . . . . . . . . Robot Hacks Applied . | . . . . . . . . . . Relay Couplers Released . | . . . . . . . . . . Fabnet Peak Effective % . | . . . . . . . . . . Robots Rewired . | . . . . . . . . . . Allies Hacked . | . . . . . . . . . . Hacks Repelled . | . . . . . . . . . . Allies | -11 -10 -10 -9 -9 -9 -8 -8 -7 -7 -------- Run | Yrd Mat Min Mat Min Exi Min Mat Fac DSF Total Allies 2 | . . . . . . . 2 . . Largest Group 1 | . . . . . . . 1 . . Highest-Rated Group 15 | . . . . . . . 15 . . Highest-Rated Ally 15 | . . . . . . . 15 . . Total Orders . | . . . . . . . . . . Ally Attacks 20 | . . . . . . . 20 . . Total Damage 86 | . . . . . . . 86 . . Kills 1 | . . . . . . . 1 . . Allies Corrupted . | . . . . . . . . . . Allies Melted . | . . . . . . . . . . Intel | -11 -10 -10 -9 -9 -9 -8 -8 -7 -7 ------- Run | Yrd Mat Min Mat Min Exi Min Mat Fac DSF Robot Analysis Total 1 | . 1 . . . . . . . . Derelict Logs Recovered 4 | . . 2 . 2 . . . . . Drone Launches 20 | . . . . . . . 20 . . Drone Recoveries 20 | . . . . . . . 20 . . Exploration | -11 -10 -10 -9 -9 -9 -8 -8 -7 -7 ------------- Run | Yrd Mat Min Mat Min Exi Min Mat Fac DSF Turns Passed 4322 | 59 726 1022 78 210 337 413 616 703 158 Spaces Moved 2544 | 40 411 557 53 161 266 351 256 369 80 Core 14 | 11 . . . . . . . . 3 Treads . | . . . . . . . . . . Legs 2530 | 29 411 557 53 161 266 351 256 369 77 Wheels . | . . . . . . . . . . Hover . | . . . . . . . . . . Flight . | . . . . . . . . . . Fastest Speed 50 | 50 120 120 120 120 120 110 110 125 123 Average Speed 144 | 113 120 172 120 120 120 110 161 185 132 Slowest Speed 260 | 120 120 190 120 120 120 120 260 260 250 Overloaded Moves . | . . . . . . . . . . Propulsion Burnouts . | . . . . . . . . . . Robots Hopped . | . . . . . . . . . . Cave-ins Triggered 1 | . . . . . . . . . 1 Exploration Rate (%) 43 | 4 59 98 10 47 64 62 26 8 60 Regions Visited 9 Branch Regions 4 Pre-discovered Areas 1 | . . . . 1 . . . . . Known Exits Taken 5 | . 1 1 . . . 1 1 1 . Unknown Exits Taken 4 | 1 . . 1 1 1 . . . . Scrap Searched 4 | . . 1 . 1 . 2 . . . Spaces Dug 3 | . . . . . . . . . 3 Terrain Destroyed 3 | . . . . . . . . . 3 Melee 3 | . . . . . . . . . 3 Projectile . | . . . . . . . . . . AOE . | . . . . . . . . . . Terrain Rammed . | . . . . . . . . . . Walls Destroyed . | . . . . . . . . . . Machines Disabled . | . . . . . . . . . . Actions | -11 -10 -10 -9 -9 -9 -8 -8 -7 -7 --------- Run | Yrd Mat Min Mat Min Exi Min Mat Fac DSF Total 3014 | 51 560 598 67 178 287 376 399 387 111 Wait 198 | . 78 3 13 13 . 18 73 . . Move 2535 | 39 410 556 52 160 265 350 255 368 80 Hop . | . . . . . . . . . . Pick Up 49 | 6 8 10 1 2 9 3 5 3 2 Fast Attach 11 | 4 1 . . . . . 2 2 2 Attach 29 | 2 2 . 1 1 2 . 12 3 6 Detach 13 | . 1 . . . 2 . 5 4 1 Swap 20 | . 1 11 . 1 2 1 1 2 1 Drop 31 | . 5 8 . 1 7 3 2 4 1 Fire 108 | . 49 8 . . . . 39 . 12 Melee 5 | . . . . . . . . . 5 Ram . | . . . . . . . . . . Kick 14 | . 5 2 . . . 1 5 1 . Crush . | . . . . . . . . . . Escape Stasis . | . . . . . . . . . . Rewire 1 | . . . . . . . . . 1 Trap . | . . . . . . . . . . Miscellaneous . | . . . . . . . . . . Route ------- -11/Scrapyard -10/Materials (discovered 5 exits: *Mat x3 / *Min x2) -10/Mines (discovered 2 exits: *Mat x2) -9/Materials (discovered 2 exits: Mat / [*Min]) -9/Mines (discovered 2 exits: *Mat / *Exi) -9/Exiles (discovered 2 exits: [*Min x2]) -8/Mines -8/Materials (discovered 2 exits: *Fac x2) -7/Factory (discovered 2 exits: [*Fac] / DSF) -7/DSF History --------- Turn | Location | Event 15 | -11/Scrapyard | Discovered new exit (range 16) 60 | -11/Scrapyard | Entered Materials 324 | -10/Materials | Identified exit to Mines 329 | -10/Materials | Build established: Mutant 601 | -10/Materials | Discovered new exit (range 15) 619 | -10/Materials | Identified exit to Materials 786 | -10/Materials | Entered Mines 809 | -10/Mines | Met a Derelict bent on vengeance 898 | -10/Mines | Found the Drone Emporium 901 | -10/Mines | Found Prototype Device 908 | -10/Mines | Identified Splice Drone Bay 964 | -10/Mines | Learned Materials terminal intel 1035 | -10/Mines | Met a Derelict shopkeep closing up shop 1286 | -10/Mines | Discovered exit to Materials (range 8) 1374 | -10/Mines | Learned 2 Materials zone layouts 1402 | -10/Mines | Found a hidden stash of uninstalled traps 1659 | -10/Mines | Discovered exit to Materials (range 8) 1808 | -10/Mines | Entered Materials 1808 | -9/Materials | Evolved 2 slots: Propulsion x1, Utility x1 1809 | -9/Materials | Identified exit to Materials 1810 | -9/Materials | Loaded intel: 12 terminal locations 1848 | -9/Materials | Discovered new exit (range 14) 1875 | -9/Materials | Met 8R-AWN 1886 | -9/Materials | Entered Mines 1888 | -9/Mines | Followed 8R-AWN into the Mines 1932 | -9/Mines | Discovered exit to Materials (range 5) 1973 | -9/Mines | Learned location of Storage (-9) 2004 | -9/Mines | Learned 2 Materials zone layouts 2092 | -9/Mines | Discovered new exit (range 5) 2096 | -9/Mines | Entered Exiles 2112 | -9/Exiles | Discovered new exit (range 15) 2125 | -9/Exiles | Welcomed by 8R-AWN 2144 | -9/Exiles | Met EX-HEX 2200 | -9/Exiles | Met EX-BIN 2216 | -9/Exiles | Aligned with FarCom system 2218 | -9/Exiles | Given EX-Vault access code 2248 | -9/Exiles | Opened EX-Vault 2251 | -9/Exiles | Found Prototype Energy Cannon 2252 | -9/Exiles | Identified Gui. Plasma Cannon 2262 | -9/Exiles | Found Prototype Processor 2267 | -9/Exiles | Identified Modified TNC 2276 | -9/Exiles | Found Prototype Device 2315 | -9/Exiles | Warned to stay clear of 0b10 Research branches 2357 | -9/Exiles | Met EX-DEC 2423 | -9/Exiles | Discovered new exit (range 10) 2433 | -9/Exiles | Left Exiles lab with Gui. Plasma Cannon 2433 | -9/Exiles | Entered Mines 2668 | -8/Mines | Discovered exit to Materials (range 7) 2846 | -8/Mines | Entered Materials 2846 | -8/Materials | Evolved 2 slots: Utility x2 2847 | -8/Materials | Identified exit to Factory 3145 | -8/Materials | Discovered exit to Factory (range 8) 3153 | -8/Materials | Build established: Scavenger-Mutant 3247 | -8/Materials | Lost 9 parts (1p4n2u2w) 3462 | -8/Materials | Entered Factory 3462 | -7/Factory | Evolved 2 slots: Utility x1, Weapon x1 3781 | -7/Factory | Identified exit to DSF 3871 | -7/Factory | Discovered new exit (range 9) 4165 | -7/Factory | Entered DSF 4200 | -7/DSF | Build established: Mutant 4217 | -7/DSF | Additional patrols routed to DSF 4273 | -7/DSF | Crushed by falling debris 4309 | -7/DSF | Core integrity fell below 50% 4318 | -7/DSF | Core integrity fell below 20% 4323 | -7/DSF | Destroyed by X-62 Marksman with Gauss Rifle Last Messages --------------- 04296_ Knocked back. 04297_ X-62 Marksman destroyed. 04299_ Penetrated by Slug. 04300_ Lightning Gun destroyed. 04302_ Penetrated by Slug. 04302_ Gui. Plasma Cannon destroyed. 04305_ Enh. Nuclear Core destroyed. 04306_ Hacking Suite destroyed. 04307_ Ion Cannon destroyed. 04307_ Critical hit (Blast). 04307_ Knocked back. 04308_ Slug penetrates Wall. 04310_ Imp. Titanium Leg destroyed. 04311_ Slug penetrates Wall. 04314_ System corrupted: IFF burst signal emitted. 04314_ Knocked back. 04314_ Slug penetrates Wall. 04320_ Adv. Targeting Computer destroyed. 04322_ Powered Hammer destroyed. Map ----- +----------------------------------------------------+ | ????????????????????????????????# #???????? | | ????????????????????????????????# #???????? | | ????????????????????????????????### ##???????? | | ????????????????????????????????#== =#???????? | | ????????????????????????????????#== =#???????? | | ???????????????????? ?????????#== =#???????? | | ???????????????????# #?###?###### ###??????? | | ???????????????!!?## ###[[[# ?# ]]#??????? | | ????????????????!## ##[[[" ## ]]#??????? | | ????????????????? %#??????? | | ????????????????? C #??????? | | ?????????????????? *#??????? | | ??????????????????? ##!!!#!!!## #??????? | | ???????????????????# #?#!??#!!!?# #??????? | | ?????????????????### ###???###### ###??????? | | ?????????????????#!! !!#??????#!! #???????? | | ????????????????##!! !!#??????#!! #???????? | | ???????????????##"!! !!#??????#!! #???????? | | ???????????????# #"" %##??????### ##???????? | | ???????????????##; #??????# #???????? | | ???????????????##; #??????# #???????? | | ????????????????## % ########## ##???????? | | ?????????????????###=% "##!!!#!!### ###??????? | | ?????????????????##[%x ###!!!#!!## ""##?????? | | ?????????????????#% ! % xY """""????? | | ?????????????????# H @ ""##"????? | | ?????????????????# #!!!#!!##"""""#??????? | | ?????????????????# % #########"""""#??????? | | ?????????????????#;####;##???????##"####??????? | | ?????????????????##???###?????????#"#?????????? | | ???????????????????????????????????""?????????? | | ??????????????????????????????????????????????? | | ??????????????????????????????????????????????? | | ??????????????????????????????????????????????? | | ??????????????????????????????????????????????? | | ??????????????????????????????????????????????? | | | | | | | | | | | | | | | | | | | | | | | | | | | | | +----------------------------------------------------+ Best States ------------- Heat Dissipation 48 Energy Generation 18 Energy Capacity 310 Matter Stores 300 Matter Capacity 300 Sight Range 16 Terrain Scan Density 10 Jamming Range 12 Base Temperature (-) 100 Armor Coverage 150 Evasion (%) 55 Targeting Accuracy 8 Offensive Hacking 10 Item Schematics ----------------- None Robot Schematics ------------------ None Fabricated ------------ Nothing Alien Tech Used ----------------- None Achievements -------------- Error 47 Factory Defaults No Signal Release The Drones! Challenges ------------ None Game ------ Seed MolecularShieldAccelerator Manual? 0 Play Time 00:57:21 Cumulative 8.6 hours Start 2024.04.23 @ 20:36:10 End 2024.04.23 @ 21:32:23 Sessions 1 Manual Loads 0 Difficulty Rogue Special Mode None Game No. 11 Rogue 11 Adventurer 0 Explorer 0 Win Type - Total 0 Types 0/0/0/0/0/0/0/0/0 Lore% 13 Gallery% 14 Achievement% 13 Wizard Run 0 Options --------- Layout 1 ASCII 0 Keyboard 1 Movement Arrows Keybinds 0 Fullscreen 1 Font 24/Smallcaps Map View 50x35 Zoom Use 0% Tactical HUD 1 Map Filters NONE Filters NONE Steam 1 RUN: a745ef8b-6cb9-4281-a767-85de02e3fdf5